[Event "FIDE World Junior U20-ch Girls 2025"]
[Site "Petrovac"]
[Date "2025.02.26"]
[Round "2.34"]
[White "Nguyen Thien Ngan"]
[Black "Shuqja, Klean"]
[Result "1-0"]
[Annotator "ChessBase"]
[ECO "B32"]
[WhiteElo "1923"]
[BlackElo "2049"]
[PlyCount "111"]
[EventDate "2025.02.23"]
[EventType "swiss"]
[EventCountry "MNE"]
[SourceTitle "playchess.com"]
[Source "ChessBase"]
[SourceQuality "1"]
[TimeControl "40/5400+30:1800+30"]

1. e4 {[%emt 0:00:04]} c5 {[%emt 0:01:34]} 2. Nf3 {[%emt 0:00:12]} Nc6 {[%emt 0:00:01]} 3. d4 {[%emt 0:00:28]} cxd4 {[%emt 0:00:02]} 4. Nxd4 {[%emt 0:00:12]} e5 {[%emt 0:00:07]} 5. Nb5 {[%emt 0:01:51]} d6 {[%emt 0:00:04]} 6. N1c3 {[%emt 0:00:47]} a6 {[%emt 0:00:19]} 7. Na3 {[%emt 0:00:08]} b5 {[%emt 0:00:10]} 8. Nd5 {[%emt 0:00:19]} Nge7 {[%emt 0:00:07]} 9. Bg5 {[%emt 0:12:37]} f6 {[%emt 0:09:58]} 10. Be3 {[%emt 0:05:03]} Nxd5 {[%emt 0:10:58]} 11. Qxd5 {[%emt 0:01:56]} Bb7 {[%emt 0:07:26]} 12. c3 {[%emt 0:13:22]} Qd7 {[%emt 0:09:20]} 13. Qd3 {[%emt 0:07:04]} Be7 {[%emt 0:01:25]} 14. Be2 {[%emt 0:12:52]} O-O {[%emt 0:00:57]} 15. Bf3 {[%emt 0:01:40]} Nd8 {[%emt 0:04:28]} 16. c4 {[%emt 0:06:36]} b4 {[%emt 0:04:14]} 17. Nc2 {[%emt 0:00:29]} a5 {[%emt 0:01:11]} 18. g4 {[%emt 0:10:11]} Bc6 {[%emt 0:05:03]} 19. h4 {[%emt 0:05:20]} Qb7 {[%emt 0:02:57]} 20. Bg2 {[%emt 0:03:51]} Ne6 {[%emt 0:04:58]} 21. O-O {[%emt 0:04:22]} Rfd8 {[%emt 0:15:01]} 22. b3 {[%emt 0:05:47]} Rd7 {[%emt 0:01:51]} 23. f3 {[%emt 0:03:42]} Bd8 {[%emt 0:01:48]} 24. g5 {[%emt 0:01:56]} Bb6 {[%emt 0:01:43]} 25. Kh2 {[%emt 0:01:07]} Bxe3 {[%emt 0:01:22]} 26. Qxe3 {[%emt 0:00:07]} fxg5 {[%emt 0:04:16]} 27. Bh3 {[%emt 0:00:55]} Re7 {[%emt 0:00:07]} 28. Bxe6+ {[%emt 0:00:14]} Rxe6 {[%emt 0:00:02]} 29. hxg5 {[%emt 0:00:38]} Rf8 {[%emt 0:01:02]} 30. Rg1 {[%emt 0:00:41]} Qf7 {[%emt 0:01:15]} 31. Rg3 {[%emt 0:00:28]} Qg6 {[%emt 0:06:03]} 32. Rag1 {[%emt 0:00:53]} Rf4 {[%emt 0:01:18]} 33. Rh3 {[%emt 0:00:29]} Re8 {[%emt 0:01:05]} 34. Ne1 {[%emt 0:00:32]} Bd7 {[%emt 0:01:11]} 35. Rhg3 {[%emt 0:00:05]} Rh4+ {[%emt 0:01:04]} 36. Kg2 {[%emt 0:00:01]} Qh5 {[%emt 0:00:11]} 37. Kf2 {[%emt 0:00:23]} Rh2+ {[%emt 0:02:44]} 38. R3g2 {[%emt 0:01:11]} Qh4+ {[%emt 0:00:22]} 39. Ke2 {[%emt 0:00:14]} Rxg2+ {[%emt 0:01:40]} 40. Rxg2 {[%emt 0:00:02]} Bh3 {[%emt 0:00:34]} 41. Rf2 {[%emt 0:30:24]} Rf8 {[%emt 0:30:30]} 42. Qd2 {[%emt 0:00:44]} Qf4 {[%emt 0:00:00]} 43. Qxf4 {[%emt 0:00:00]} Rxf4 {[%emt 0:00:00]} 44. Ke3 {[%emt 0:00:00]} h6 {[%emt 0:00:00]} 45. gxh6 {[%emt 0:00:00]} g5 {[%emt 0:00:00]} 46. Nd3 {[%emt 0:00:00]} Rf6 {[%emt 0:00:00]} 47. Rh2 {[%emt 0:00:00]} Bf1 {[%emt 0:00:00]} 48. Nf2 {[%emt 0:00:00]} Kh7 {[%emt 0:00:00]} 49. Ng4 {[%emt 0:00:00]} Rf4 {[%emt 0:00:44]} 50. Kf2 {[%emt 0:00:00]} Bd3 {[%emt 0:00:08]} 51. Kg3 {[%emt 0:00:00]} a4 {[%emt 0:02:11]} 52. Rd2 {[%emt 0:00:00]} axb3 {[%emt 0:01:40]} 53. axb3 {[%emt 0:00:00]} Bf1 {[%emt 0:01:06]} 54. Rxd6 {[%emt 0:00:00]} Be2 {[%emt 0:00:11]} 55. Rd7+ {[%emt 0:00:00]} Kh8 {[%emt 0:00:09]} 56. Nxe5 {[%emt 0:00:00]} 1-0

[Event "FIDE World Junior U20-ch Girls 2025"]
[Site "Petrovac"]
[Date "2025.02.26"]
[Round "2.35"]
[White "Zhou, Shumeng"]
[Black "Djerroud, Chahrazed"]
[Result "1-0"]
[Annotator "NA"]
[ECO "C54"]
[WhiteElo "2049"]
[BlackElo "1914"]
[PlyCount "83"]
[EventDate "2025.02.23"]
[EventType "swiss"]
[EventCountry "MNE"]
[SourceTitle "playchess.com"]
[Source "ChessBase"]
[SourceQuality "1"]
[TimeControl "40/5400+30:1800+30"]

1. e4 {[%emt 0:00:02]} e5 {[%emt 0:00:22]} 2. Nf3 {[%emt 0:00:06]} Nc6 {[%emt 0:00:11]} 3. Bc4 {[%emt 0:00:05]} Bc5 {[%emt 0:00:14]} 4. c3 {[%emt 0:00:06]} Nf6 {[%emt 0:00:05]} 5. d3 {[%emt 0:00:04]} d6 {[%emt 0:00:28]} 6. O-O {[%emt 0:00:07]} a5 {[%emt 0:00:33]} 7. h3 {[%emt 0:00:24]} Be6 {[%emt 0:03:28]} 8. Bb5 {[%emt 0:00:20]} Bd7 {[%emt 0:01:56]} 9. Re1 {[%emt 0:13:51]} Ne7 {[%emt 0:11:14]} 10. Bxd7+ {[%emt 0:02:12]} Nxd7 {[%emt 0:04:54]} 11. d4 {[%emt 0:00:22]} Ba7 {[%emt 0:03:37]} 12. Qb3 {[%emt 0:03:28]} a4 {[%emt 0:14:03]} 13. Qc2 {[%emt 0:07:26]} O-O {[%emt 0:02:19]} 14. Nbd2 {[%emt 0:01:05]} Ng6 {[%emt 0:05:38]} 15. Nf1 {[%emt 0:05:39]} Nf6 {[%emt 0:06:03]} 16. Ng3 {[%emt 0:02:43]} Re8 {[%emt 0:02:01]} 17. Be3 {[%emt 0:04:38]} c6 {[%emt 0:08:59]} 18. Rad1 {[%emt 0:02:46]} Qc7 {[%emt 0:01:17]} 19. Bg5 {[%emt 0:01:59]} Nd7 {[%emt 0:02:22]} 20. Nf5 {[%emt 0:04:58]} Ndf8 {[%emt 0:03:47]} 21. h4 {[%emt 0:01:54]} Ne6 {[%emt 0:01:42]} 22. Bc1 {[%emt 0:07:18]} b5 {[%emt 0:07:54]} 23. g3 {[%emt 0:05:16]} Ne7 {[%emt 0:01:44]} 24. Kg2 {[%emt 0:03:31]} g6 {[%emt 0:04:03]} 25. Nh6+ {[%emt 0:01:59]} Kg7 {[%emt 0:00:02]} 26. h5 {[%emt 0:01:58]} f6 {[%emt 0:03:05]} 27. Qd2 {[%emt 0:09:35]} Ng8 {[%emt 0:03:58]} 28. hxg6 {[%emt 0:01:57]} hxg6 {[%emt 0:00:43]} 29. Rh1 {[%emt 0:00:42]} exd4 {[%emt 0:04:40]} 30. cxd4 {[%emt 0:01:05]} Qb6 {[%emt 0:00:51]} 31. Nxg8 {[%emt 0:01:51]} Rxg8 {[%emt 0:00:11]} 32. Rh7+ {[%emt 0:00:46]} Kf8 {[%emt 0:00:01]} 33. Qh6+ {[%emt 0:02:46]} Ke8 {[%emt 0:00:45]} 34. Be3 {[%emt 0:01:48]} Nf8 {[%emt 0:02:05]} 35. e5 {[%emt 0:05:52]} Nxh7 {[%emt 0:01:26]} 36. Qxh7 {[%emt 0:00:02]} Rf8 {[%emt 0:00:29]} 37. Qxg6+ {[%emt 0:02:10]} Kd8 {[%emt 0:00:03]} 38. Bh6 {[%emt 0:00:31]} fxe5 {[%emt 0:01:12]} 39. Qxd6+ {[%emt 0:00:18]} Kc8 {[%emt 0:00:06]} 40. Bxf8 {[%emt 0:00:24]} Kb7 {[%emt 0:01:14]} 41. Qd7+ {[%emt 0:30:27]} Ka6 {[%emt 0:29:57]} 42. Bc5 {[%emt 0:00:07]} 1-0

[Event "FIDE World Junior U20-ch Girls 2025"]
[Site "Petrovac"]
[Date "2025.02.26"]
[Round "2.36"]
[White "Popovic, Mateja"]
[Black "Vujatovic, Irina"]
[Result "1/2-1/2"]
[Annotator "NA"]
[ECO "D52"]
[WhiteElo "1917"]
[BlackElo "2042"]
[PlyCount "114"]
[EventDate "2025.02.23"]
[EventType "swiss"]
[EventCountry "MNE"]
[SourceTitle "playchess.com"]
[Source "ChessBase"]
[SourceQuality "1"]
[TimeControl "40/5400+30:1800+30"]

1. d4 {[%emt 0:00:56]} d5 {[%emt 0:00:14]} 2. c4 {[%emt 0:00:06]} e6 {[%emt 0:00:04]} 3. Nc3 {[%emt 0:00:04]} Nf6 {[%emt 0:00:03]} 4. Bg5 {[%emt 0:00:17]} Nbd7 {[%emt 0:00:05]} 5. e3 {[%emt 0:00:17]} c6 {[%emt 0:00:05]} 6. Nf3 {[%emt 0:00:48]} Qa5 {[%emt 0:00:06]} 7. Bxf6 {[%emt 0:02:28]} Nxf6 {[%emt 0:00:08]} 8. a3 {[%emt 0:05:48]} Ne4 {[%emt 0:00:32]} 9. Qb3 {[%emt 0:00:29]} f5 {[%emt 0:01:32]} 10. Bd3 {[%emt 0:04:27]} Bd6 {[%emt 0:02:13]} 11. cxd5 {[%emt 0:02:14]} exd5 {[%emt 0:00:16]} 12. O-O {[%emt 0:00:20]} O-O {[%emt 0:01:33]} 13. Bxe4 {[%emt 0:03:51]} fxe4 {[%emt 0:00:19]} 14. Nxe4 {[%emt 0:00:21]} Be7 {[%emt 0:00:25]} 15. Ne5 {[%emt 0:07:20]} Kh8 {[%emt 0:01:30]} 16. Ng3 {[%emt 0:01:05]} Bd6 {[%emt 0:02:25]} 17. f4 {[%emt 0:00:51]} Qc7 {[%emt 0:04:26]} 18. Rac1 {[%emt 0:03:08]} Be6 {[%emt 0:00:51]} 19. Qd3 {[%emt 0:04:25]} a5 {[%emt 0:01:23]} 20. e4 {[%emt 0:06:08]} Bxe5 {[%emt 0:04:00]} 21. dxe5 {[%emt 0:05:01]} Qb6+ {[%emt 0:00:57]} 22. Kh1 {[%emt 0:02:04]} dxe4 {[%emt 0:07:33]} 23. Qxe4 {[%emt 0:02:13]} Qxb2 {[%emt 0:01:32]} 24. Rb1 {[%emt 0:01:08]} Qd2 {[%emt 0:03:39]} 25. Rxb7 {[%emt 0:01:52]} Bd5 {[%emt 0:00:51]} 26. Qe2 {[%emt 0:00:05]} Qxe2 {[%emt 0:04:39]} 27. Nxe2 {[%emt 0:00:13]} Rae8 {[%emt 0:02:20]} 28. Kg1 {[%emt 0:03:51]} g5 {[%emt 0:00:57]} 29. g3 {[%emt 0:06:23]} Bc4 {[%emt 0:01:49]} 30. Rb2 {[%emt 0:00:40]} gxf4 {[%emt 0:02:50]} 31. Rxf4 {[%emt 0:01:33]} Rxf4 {[%emt 0:04:38]} 32. gxf4 {[%emt 0:00:56]} Rg8+ {[%emt 0:01:16]} 33. Kf2 {[%emt 0:01:18]} Bd5 {[%emt 0:06:32]} 34. Ng3 {[%emt 0:00:41]} h5 {[%emt 0:02:20]} 35. Ke3 {[%emt 0:01:58]} h4 {[%emt 0:01:27]} 36. Ne4 {[%emt 0:00:12]} Rg1 {[%emt 0:02:17]} 37. Nf6 {[%emt 0:02:39]} Re1+ {[%emt 0:04:09]} 38. Kf2 {[%emt 0:03:39]} Rh1 {[%emt 0:03:14]} 39. Ke3 {[%emt 0:01:34]} Re1+ {[%emt 0:00:40]} 40. Kd4 {[%emt 0:00:09]} Be6 {[%emt 0:06:18]} 41. Rb7 {[%emt 0:30:55]} Bf5 {[%emt 0:31:35]} 42. Kc5 {[%emt 0:01:38]} Re3 {[%emt 0:02:44]} 43. Kxc6 {[%emt 0:03:03]} Rxa3 {[%emt 0:00:20]} 44. e6 {[%emt 0:00:31]} Re3 {[%emt 0:00:40]} 45. e7 {[%emt 0:00:28]} Bg6 {[%emt 0:03:51]} 46. f5 {[%emt 0:01:04]} Bxf5 {[%emt 0:01:12]} 47. e8=Q+ {[%emt 0:00:18]} Rxe8 {[%emt 0:00:07]} 48. Nxe8 {[%emt 0:01:11]} Be4+ {[%emt 0:00:05]} 49. Kb5 {[%emt 0:00:12]} Bxb7 {[%emt 0:00:09]} 50. Kxa5 {[%emt 0:00:05]} Bc6 {[%emt 0:00:24]} 51. Nd6 {[%emt 0:00:13]} Bd7 {[%emt 0:00:35]} 52. Kb4 {[%emt 0:00:11]} Kg7 {[%emt 0:00:16]} 53. Kc4 {[%emt 0:00:09]} Kf6 {[%emt 0:00:22]} 54. Kd4 {[%emt 0:00:07]} Kg5 {[%emt 0:00:16]} 55. Ke3 {[%emt 0:01:57]} Kg4 {[%emt 0:01:00]} 56. Kf2 {[%emt 0:00:06]} Kf4 {[%emt 0:00:06]} 57. Nc4 {[%emt 0:00:16]} Be6 {[%emt 0:00:22]} 1/2-1/2

[Event "FIDE World Junior U20-ch Girls 2025"]
[Site "Petrovac"]
[Date "2025.02.26"]
[Round "2.37"]
[White "Huseynova, Lala"]
[Black "Xu, Luna Yuexiu"]
[Result "1-0"]
[Annotator "NA"]
[ECO "C07"]
[WhiteElo "2032"]
[BlackElo "1903"]
[PlyCount "127"]
[EventDate "2025.02.23"]
[EventType "swiss"]
[EventCountry "MNE"]
[SourceTitle "playchess.com"]
[Source "ChessBase"]
[SourceQuality "1"]
[TimeControl "40/5400+30:1800+30"]

1. e4 {[%emt 0:00:02]} e6 {[%emt 0:00:40]} 2. d4 {[%emt 0:00:04]} d5 {[%emt 0:00:09]} 3. Nd2 {[%emt 0:00:11]} c5 {[%emt 0:00:32]} 4. Ngf3 {[%emt 0:00:09]} Nf6 {[%emt 0:01:19]} 5. exd5 {[%emt 0:01:48]} Qxd5 {[%emt 0:01:05]} 6. Bc4 {[%emt 0:00:58]} Qd6 {[%emt 0:01:32]} 7. dxc5 {[%emt 0:12:06]} Qxc5 {[%emt 0:00:28]} 8. Qe2 {[%emt 0:00:18]} Qc7 {[%emt 0:04:36]} 9. Nb3 {[%emt 0:06:48]} Bd6 {[%emt 0:02:18]} 10. Bg5 {[%emt 0:05:19]} Nbd7 {[%emt 0:06:36]} 11. Nbd4 {[%emt 0:03:30]} O-O {[%emt 0:12:47]} 12. Nb5 {[%emt 0:03:09]} Qa5+ {[%emt 0:02:50]} 13. Bd2 {[%emt 0:00:45]} Bb4 {[%emt 0:00:54]} 14. c3 {[%emt 0:00:45]} Be7 {[%emt 0:00:34]} 15. Bf4 {[%emt 0:04:25]} a6 {[%emt 0:09:58]} 16. b4 {[%emt 0:19:42]} Bxb4 {[%emt 0:06:48]} 17. cxb4 {[%emt 0:01:39]} Qxb4+ {[%emt 0:00:14]} 18. Bd2 {[%emt 0:02:11]} Qb2 {[%emt 0:00:37]} 19. O-O {[%emt 0:15:34]} axb5 {[%emt 0:00:26]} 20. Rfb1 {[%emt 0:06:51]} Qc2 {[%emt 0:01:00]} 21. Bd3 {[%emt 0:01:35]} Qc7 {[%emt 0:01:28]} 22. Rxb5 {[%emt 0:00:34]} b6 {[%emt 0:01:04]} 23. Rc1 {[%emt 0:03:35]} Nc5 {[%emt 0:01:29]} 24. Rb2 {[%emt 0:05:07]} Bb7 {[%emt 0:01:19]} 25. Be3 {[%emt 0:00:40]} Rfd8 {[%emt 0:01:44]} 26. Bb1 {[%emt 0:01:12]} Ba6 {[%emt 0:01:10]} 27. Qe1 {[%emt 0:00:10]} Rab8 {[%emt 0:01:33]} 28. Bd4 {[%emt 0:00:33]} Qe7 {[%emt 0:03:15]} 29. Rxb6 {[%emt 0:01:35]} Rxb6 {[%emt 0:02:12]} 30. Bxc5 {[%emt 0:00:00]} Qb7 {[%emt 0:00:02]} 31. Bxb6 {[%emt 0:00:07]} Qxb6 {[%emt 0:00:03]} 32. Ne5 {[%emt 0:01:02]} Qb2 {[%emt 0:01:38]} 33. Nc6 {[%emt 0:01:45]} Rd2 {[%emt 0:02:32]} 34. Rd1 {[%emt 0:01:11]} Rxd1 {[%emt 0:01:15]} 35. Qxd1 {[%emt 0:00:01]} Nd5 {[%emt 0:00:56]} 36. a4 {[%emt 0:02:25]} Be2 {[%emt 0:01:02]} 37. Qc2 {[%emt 0:00:33]} Qxc2 {[%emt 0:00:42]} 38. Bxc2 {[%emt 0:00:01]} Nc7 {[%emt 0:01:06]} 39. f3 {[%emt 0:00:46]} Kf8 {[%emt 0:00:51]} 40. Kf2 {[%emt 0:00:12]} Ba6 {[%emt 0:00:31]} 41. Ke3 {[%emt 0:30:11]} h6 {[%emt 0:32:20]} 42. Kd4 {[%emt 0:00:13]} Ke8 {[%emt 0:00:38]} 43. Kc5 {[%emt 0:00:00]} Bf1 {[%emt 0:00:00]} 44. g3 {[%emt 0:00:00]} Bg2 {[%emt 0:00:00]} 45. Kd6 {[%emt 0:00:00]} Nd5 {[%emt 0:00:00]} 46. Be4 {[%emt 0:00:00]} Nc3 {[%emt 0:00:00]} 47. a5 {[%emt 0:00:00]} Bf1 {[%emt 0:00:00]} 48. Nb8 {[%emt 0:00:00]} Kd8 {[%emt 0:00:00]} 49. Bb7 {[%emt 0:00:00]} Nb5+ {[%emt 0:00:00]} 50. Kc6 {[%emt 0:00:00]} Nd4+ {[%emt 0:00:00]} 51. Kb6 {[%emt 0:00:00]} g5 {[%emt 0:00:00]} 52. Nc6+ {[%emt 0:00:00]} Nxc6 {[%emt 0:00:00]} 53. Kxc6 {[%emt 0:00:00]} g4 {[%emt 0:02:45]} 54. fxg4 {[%emt 0:00:00]} f5 {[%emt 0:00:57]} 55. gxf5 {[%emt 0:00:00]} exf5 {[%emt 0:00:30]} 56. Kd6 {[%emt 0:00:00]} Ke8 {[%emt 0:02:20]} 57. a6 {[%emt 0:00:00]} Bxa6 {[%emt 0:00:21]} 58. Bxa6 {[%emt 0:00:00]} Kf7 {[%emt 0:00:18]} 59. Ke5 {[%emt 0:00:00]} Kg6 {[%emt 0:00:33]} 60. Bd3 {[%emt 0:00:00]} Kh5 {[%emt 0:00:29]} 61. Bxf5 {[%emt 0:00:00]} Kg5 {[%emt 0:00:18]} 62. h4+ {[%emt 0:00:43]} Kh5 {[%emt 0:00:12]} 63. Bh3 {[%emt 0:00:10]} Kg6 {[%emt 0:00:20]} 64. g4 {[%emt 0:00:04]} 1-0

[Event "FIDE World Junior U20-ch Girls 2025"]
[Site "Petrovac"]
[Date "2025.02.26"]
[Round "2.38"]
[White "Morales Perez, Ghisell"]
[Black "Radenkovic, Mila"]
[Result "1/2-1/2"]
[Annotator "NA"]
[ECO "B07"]
[WhiteElo "1902"]
[BlackElo "2027"]
[PlyCount "45"]
[EventDate "2025.02.23"]
[EventType "swiss"]
[EventCountry "MNE"]
[SourceTitle "playchess.com"]
[Source "ChessBase"]
[SourceQuality "1"]
[TimeControl "40/5400+30:1800+30"]

1. d4 {[%emt 0:00:07]} Nf6 {[%emt 0:00:10]} 2. Nc3 {[%emt 0:00:10]} g6 {[%emt 0:00:51]} 3. e4 {[%emt 0:00:31]} d6 {[%emt 0:00:07]} 4. Be3 {[%emt 0:00:28]} Bg7 {[%emt 0:00:11]} 5. Qd2 {[%emt 0:00:41]} O-O {[%emt 0:01:16]} 6. O-O-O {[%emt 0:01:15]} c6 {[%emt 0:10:46]} 7. f3 {[%emt 0:08:46]} h5 {[%emt 0:00:35]} 8. h3 {[%emt 0:07:42]} Qc7 {[%emt 0:03:23]} 9. g4 {[%emt 0:04:44]} Nbd7 {[%emt 0:02:10]} 10. gxh5 {[%emt 0:20:19]} Nxh5 {[%emt 0:00:54]} 11. Nge2 {[%emt 0:01:55]} b5 {[%emt 0:03:03]} 12. Nf4 {[%emt 0:01:28]} Ng3 {[%emt 0:06:52]} 13. Rg1 {[%emt 0:00:57]} Nxf1 {[%emt 0:00:05]} 14. Rdxf1 {[%emt 0:00:07]} Nb6 {[%emt 0:00:09]} 15. Nxg6 {[%emt 0:26:22]} Nc4 {[%emt 0:16:09]} 16. Qg2 {[%emt 0:04:40]} fxg6 {[%emt 0:01:03]} 17. Qxg6 {[%emt 0:00:22]} e5 {[%emt 0:02:36]} 18. Bh6 {[%emt 0:00:47]} Rf7 {[%emt 0:00:04]} 19. Bxg7 {[%emt 0:03:26]} Rxg7 {[%emt 0:00:35]} 20. Qe8+ {[%emt 0:01:26]} Kh7 {[%emt 0:00:24]} 21. Qh5+ {[%emt 0:01:29]} Kg8 {[%emt 0:00:07]} 22. Qe8+ {[%emt 0:04:51]} Kh7 {[%emt 0:00:14]} 23. Qh5+ {[%emt 0:01:03]} 1/2-1/2

[Event "FIDE World Junior U20-ch Girls 2025"]
[Site "Petrovac"]
[Date "2025.02.26"]
[Round "2.39"]
[White "Karacsonyi, Luca"]
[Black "Hernandez, Lexie Grace"]
[Result "0-1"]
[Annotator "NA"]
[ECO "B10"]
[WhiteElo "2026"]
[BlackElo "1892"]
[PlyCount "136"]
[EventDate "2025.02.23"]
[EventType "swiss"]
[EventCountry "MNE"]
[SourceTitle "playchess.com"]
[Source "ChessBase"]
[SourceQuality "1"]
[TimeControl "40/5400+30:1800+30"]

1. e4 {[%emt 0:00:03]} c6 {[%emt 0:01:12]} 2. Nf3 {[%emt 0:00:09]} d5 {[%emt 0:00:35]} 3. exd5 {[%emt 0:00:07]} cxd5 {[%emt 0:00:04]} 4. Ne5 {[%emt 0:00:11]} Nf6 {[%emt 0:01:33]} 5. d4 {[%emt 0:00:36]} Nc6 {[%emt 0:01:05]} 6. Bb5 {[%emt 0:00:28]} Qb6 {[%emt 0:01:08]} 7. c4 {[%emt 0:01:52]} Bd7 {[%emt 0:02:55]} 8. O-O {[%emt 0:20:25]} Nxe5 {[%emt 0:16:04]} 9. dxe5 {[%emt 0:00:47]} Bxb5 {[%emt 0:00:04]} 10. cxb5 {[%emt 0:01:09]} Nd7 {[%emt 0:00:07]} 11. Qxd5 {[%emt 0:04:12]} e6 {[%emt 0:00:12]} 12. Qb3 {[%emt 0:05:11]} Nxe5 {[%emt 0:06:04]} 13. Nc3 {[%emt 0:03:57]} Be7 {[%emt 0:05:56]} 14. Be3 {[%emt 0:01:42]} Qc7 {[%emt 0:00:07]} 15. b6 {[%emt 0:06:24]} axb6 {[%emt 0:03:36]} 16. Nb5 {[%emt 0:03:53]} Qc6 {[%emt 0:03:13]} 17. Rac1 {[%emt 0:13:02]} Bc5 {[%emt 0:00:06]} 18. Bf4 {[%emt 0:04:39]} Ng6 {[%emt 0:01:15]} 19. Nc7+ {[%emt 0:03:01]} Ke7 {[%emt 0:04:44]} 20. Bg5+ {[%emt 0:02:23]} f6 {[%emt 0:03:44]} 21. Nxa8 {[%emt 0:02:35]} fxg5 {[%emt 0:03:23]} 22. Qg3 {[%emt 0:01:13]} Rxa8 {[%emt 0:02:04]} 23. b4 {[%emt 0:01:55]} h6 {[%emt 0:00:14]} 24. bxc5 {[%emt 0:05:55]} Nf4 {[%emt 0:00:21]} 25. Rc2 {[%emt 0:04:05]} bxc5 {[%emt 0:00:30]} 26. f3 {[%emt 0:02:48]} Qd5 {[%emt 0:01:42]} 27. Qf2 {[%emt 0:01:35]} b6 {[%emt 0:00:19]} 28. Rd2 {[%emt 0:00:58]} Qf5 {[%emt 0:04:46]} 29. Rfd1 {[%emt 0:00:41]} Nd5 {[%emt 0:02:31]} 30. Re1 {[%emt 0:02:56]} Kf7 {[%emt 0:03:34]} 31. Qe2 {[%emt 0:01:05]} Rd8 {[%emt 0:01:41]} 32. Qe4 {[%emt 0:01:53]} Qf6 {[%emt 0:02:36]} 33. Rb1 {[%emt 0:02:10]} Rd6 {[%emt 0:01:50]} 34. Qa4 {[%emt 0:00:57]} Qf4 {[%emt 0:01:36]} 35. Qa7+ {[%emt 0:01:27]} Kg6 {[%emt 0:02:49]} 36. Rbd1 {[%emt 0:00:23]} c4 {[%emt 0:01:04]} 37. Rd4 {[%emt 0:00:59]} Qe3+ {[%emt 0:00:29]} 38. Kh1 {[%emt 0:00:46]} c3 {[%emt 0:01:17]} 39. Qa4 {[%emt 0:00:28]} b5 {[%emt 0:00:35]} 40. Qc2+ {[%emt 0:00:34]} Kf6 {[%emt 0:00:12]} 41. h4 {[%emt 0:11:06]} gxh4 {[%emt 0:02:47]} 42. Rg4 {[%emt 0:03:29]} g5 {[%emt 0:00:54]} 43. Qh7 {[%emt 0:00:40]} h3 {[%emt 0:08:04]} 44. Qxh6+ {[%emt 0:01:50]} Kf7 {[%emt 0:01:32]} 45. Qxh3 {[%emt 0:03:59]} Kg6 {[%emt 0:05:02]} 46. Qh8 {[%emt 0:04:06]} Nf6 {[%emt 0:00:52]} 47. Rxd6 {[%emt 0:02:29]} Qe1+ {[%emt 0:00:18]} 48. Kh2 {[%emt 0:00:05]} Qe5+ {[%emt 0:00:22]} 49. Kh3 {[%emt 0:02:58]} Qxd6 {[%emt 0:00:32]} 50. Rxg5+ {[%emt 0:00:31]} Kxg5 {[%emt 0:00:21]} 51. Qg7+ {[%emt 0:00:23]} Kf5 {[%emt 0:00:10]} 52. g4+ {[%emt 0:00:22]} Ke5 {[%emt 0:00:03]} 53. Qg5+ {[%emt 0:00:52]} Kd4 {[%emt 0:00:10]} 54. Qxf6+ {[%emt 0:00:18]} Qe5 {[%emt 0:00:43]} 55. Qd8+ {[%emt 0:00:22]} Ke3 {[%emt 0:00:37]} 56. Qd1 {[%emt 0:00:50]} Kf2 {[%emt 0:01:43]} 57. Qc2+ {[%emt 0:01:59]} Kxf3 {[%emt 0:00:11]} 58. Qg2+ {[%emt 0:00:39]} Ke3 {[%emt 0:00:12]} 59. Qg1+ {[%emt 0:00:53]} Kd2 {[%emt 0:00:40]} 60. Qf2+ {[%emt 0:01:22]} Kd3 {[%emt 0:00:15]} 61. Qf1+ {[%emt 0:00:41]} Qe2 {[%emt 0:00:08]} 62. Qb1+ {[%emt 0:00:19]} Kd2 {[%emt 0:00:12]} 63. Qb4 {[%emt 0:00:44]} Qc4 {[%emt 0:00:23]} 64. Qa5 {[%emt 0:00:38]} b4 {[%emt 0:00:51]} 65. Qg5+ {[%emt 0:00:47]} Kd1 {[%emt 0:00:13]} 66. Qd8+ {[%emt 0:00:21]} Qd5 {[%emt 0:00:24]} 67. Qf6 {[%emt 0:00:50]} Qd3+ {[%emt 0:00:22]} 68. Kh2 {[%emt 0:00:33]} c2 {[%emt 0:00:17]} 0-1